Cogmind - Beta 13 @@@ ROGUE MODE // 2024.04.07 @ 21:29:04 Player: Fractal Result: Destroyed by 7J-1AU(R) with Subdweller Machine Gun Performance ------------- Evolutions (0) 0 Regions Visited (2) 400 Robots Destroyed (20) 100 Value Destroyed (419) 419 Prototype IDs (0) 0 Alien Tech Used (0) 0 Bonus (0) 0 TOTAL SCORE: 919 Bonus ------- None Cogmind --------- Core Integrity 0/250 Matter 158/300 Energy 115/125 System Corruption 0% Temperature Cool (0) Movement Core (500) Ox9 Location -10/Subcaves Parts ------- > --- POWER (1) -------- Light Ion Engine > --- PROPULSION (2) --- (None) > --- UTILITY (2) ------ Large Storage Unit Visual Processing Unit > --- WEAPON (2) ------- Particle Gun Battle Rifle > --- INVENTORY (15) --- Light Ion Engine Aluminum Leg Aluminum Leg Aluminum Leg Aluminum Leg Sensor Array Sensor Array Signal Interpreter Improved Terrain Scanner ECM Suite Hacking Suite Grenade Launcher Datajack Peak State ------------ > --- POWER ------------ Light Ion Engine > --- PROPULSION ------- Aluminum Leg Aluminum Leg > --- UTILITY ---------- Large Storage Unit Visual Processing Unit > --- WEAPON ----------- EM Pulse Gun Grenade Launcher > --- INVENTORY -------- Light Ion Engine Aluminum Leg Aluminum Leg Aluminum Leg Aluminum Leg Aluminum Leg Sensor Array Sensor Array Signal Interpreter Improved Terrain Scanner ECM Suite Hacking Suite Particle Gun Assault Rifle Datajack [Rating: 10] Favorites ----------- Power Light Ion Engine Engine Light Ion Engine Propulsion Aluminum Leg Leg Aluminum Leg Utility Visual Processing Unit Storage Large Storage Unit Processor Visual Processing Unit Weapon Assault Rifle Energy Gun EM Pulse Gun Ballistic Gun Assault Rifle Launcher Grenade Launcher Build | -11 -10 -10 ------- Run | Yrd Mat Sub Slots Evolved . | . . . Power . | . . . Propulsion . | . . . Utility . | . . . Weapon . | . . . Parts Attached 19 | 6 9 4 Power 2 | 1 1 . Engine 2 | 1 1 . Core . | . . . Reactor . | . . . Propulsion 6 | 2 3 1 Treads . | . . . Leg 6 | 2 3 1 Wheel . | . . . Hover . | . . . Flight . | . . . Utility 3 | 1 2 . Device . | . . . Storage 2 | 1 1 . Processor 1 | . 1 . Hackware . | . . . Protection . | . . . Artifact . | . . . Weapon 8 | 2 3 3 Energy Gun 2 | . 1 1 Energy Cannon . | . . . Ballistic Gun 4 | 2 . 2 Ballistic Cannon . | . . . Launcher 2 | . 2 . Special Weapon . | . . . Impact Weapon . | . . . Slashing Weapon . | . . . Piercing Weapon . | . . . Special Melee Weapon . | . . . Unidentified Prototypes . | . . . Parts Lost 6 | . 2 4 Power 1 | . 1 . Propulsion 2 | . . 2 Utility . | . . . Weapon 3 | . 1 2 Highest Loss Streak 4 | . 2 4 To Critical Strikes . | . . . Average Slot Usage (%) 97 | . 97 99 Engine 13 | . 13 14 Leg 27 | . 28 27 Storage 14 | . 14 14 Processor 13 | . 13 14 Energy Gun 5 | . 4 14 Ballistic Gun 12 | . 14 1 Launcher 8 | . 8 12 Naked Turns . | . . . Heaviest Build 28 | 11 28 28 Greatest Support 20 | 20 20 20 Greatest Overweight (x) 1 | . 1 1 Average Overweight (x) . | . . 1 Largest Inventory Capacity 15 | 8 15 15 Average Capacity 13 | 6 13 15 Most Carried 15 | 2 15 15 Average Carried 10 | 1 10 14 Final Capacity 15 | 8 15 15 Final Carried 14 | 2 14 13 Class Distribution -------------------- 100% | Mutant Dominant Class ---------------- Mutant | -10/Materials Mutant | -10/Subcaves Resources | -11 -10 -10 ----------- Run | Yrd Mat Sub Matter Collected 527 | 188 314 25 Remotely . | . . . Salvage Created 489 | . 489 . Parts 35 | . 35 . Haulers Intercepted . | . . . Recyclers Shooed . | . . . Parts Field Recycled . | . . . Retrieved Matter . | . . . Parts Self-Destructed 5 | . . 5 Prevented . | . . . Kills | -11 -10 -10 ------- Run | Yrd Mat Sub Combat Hostiles Destroyed 13 | . 13 . Guns 6 | . 6 . AOE 7 | . 7 . Classes Destroyed 7 | . 7 . Worker 1 | . 1 . Tunneler 1 | . 1 . Recycler 1 | . 1 . Operator 1 | . 1 . Watcher 3 | . 3 . Swarmer 6 | . 6 . Grunt 7 | . 7 . Best Kill Streak 5 | . 5 . Combat Bots Only 3 | . 3 . Max Kills in Single Turn 4 | . 4 . Gunslinging . | . . . Exploded 3 | . 3 . Melee . | . . . Uniques/NPCs Destroyed . | . . . Combat | -11 -10 -10 -------- Run | Yrd Mat Sub Hostile Shots Fired 97 | . 72 25 Missed 26 | . 18 8 Damage Taken 983 | . 618 365 Core 252 | . 149 103 Absorbed by Shields . | . . . Core Remaining (%) 100 | 100 . . Volleys Fired 66 | . 54 12 Largest 2 | . 2 1 Hottest 60 | . 60 30 Shots Fired 100 | . 88 12 Gun 89 | . 78 11 Cannon . | . . . Launcher 11 | . 10 1 Special . | . . . Kinetic 87 | . 76 11 Thermal . | . . . Explosive 11 | . 10 1 Electromagnetic 2 | . 2 . Robot Hit Streak 12 | . 12 3 Robot Miss Streak 5 | . 5 2 Penetration Max . | . . . Secondary Targets . | . . . Shots Hit Robots 57 | . 50 7 Core Hits 37 | . 35 2 Critical Kills . | . . . Critical Parts Destroyed . | . . . Critical Strikes 1 | . . 1 Destroy 1 | . . 1 Melee Attacks . | . . . Impact . | . . . Slashing . | . . . Piercing . | . . . Sneak Attacks . | . . . Combat Hostiles . | . . . Follow-up Attacks . | . . . Damage Inflicted 1072 | . 949 123 Guns 593 | . 503 90 Cannons . | . . . Explosions 479 | . 446 33 Melee . | . . . Ramming . | . . . Kinetic 578 | . 488 90 Thermal . | . . . Explosive 479 | . 446 33 Electromagnetic 15 | . 15 . Impact . | . . . Slashing . | . . . Piercing . | . . . Highest Corruption . | . . . Average Corruption . | . . . Corruption Purged . | . . . Corruption Blocked . | . . . Overload Shots . | . . . Overflow Damage 1 | . 1 . Projectiles . | . . . Explosions 1 | . 1 . Melee . | . . . Knockbacks . | . . . Impact . | . . . Kinetic . | . . . Secondary . | . . . Self-Inflicted Damage 31 | . 31 . Shots 5 | . 5 . Rammed . | . . . Targets Rammed . | . . . Kicked . | . . . Crushed . | . . . Highest Temperature 27 | . 27 . Average Temperature 7 | . 7 . Received Heat Transfer 297 | . 297 . Siege Activations . | . . . Robots Corrupted . | . . . Combat Hostiles . | . . . Parts Fried . | . . . Impact Corruptions . | . . . Robots Melted . | . . . Combat Hostiles . | . . . Parts Melted . | . . . Heat Transferred . | . . . Parts Sabotaged . | . . . Parts Stolen . | . . . Parts Stripped . | . . . Power Chain Reactions . | . . . Alert | -11 -10 -10 ------- Run | Yrd Mat Sub Peak Influence 184 | . 184 . Initial . | . . . Average 87 | . 90 . Maximum Alert Level . | . . . Low Security (%) 100 | 100 100 . Level 1 . | . . . Level 2 . | . . . Level 3 . | . . . Level 4 . | . . . Level 5 . | . . . High Security . | . . . Max Security . | . . . Squads Dispatched 4 | . 4 . Investigation 2 | . 2 . Extermination . | . . . Reinforcement 2 | . 2 . Assault . | . . . Garrison . | . . . Intercept . | . . . Searches Triggered . | . . . Construction Impeded . | . . . Haulers Reinforced . | . . . Active Scanning Responses . | . . . Cargo Convoy Interrupts . | . . . Stealth | -11 -10 -10 --------- Run | Yrd Mat Sub Distress Signals 2 | . 2 . Communications Jammed . | . . . Distress Signals . | . . . Times Spotted 23 | . 20 3 Peak Tracking Total 4 | . 4 3 Tactical Retreats . | . . . Traps | -11 -10 -10 ------- Run | Yrd Mat Sub Traps Triggered 2 | . 2 . Indirectly . | . . . Trap Hack Attempts . | . . . Triggered . | . . . Disarmed . | . . . Reprogrammed . | . . . Reused . | . . . Traps Extracted . | . . . Installed . | . . . Triggered . | . . . Machines | -11 -10 -10 ---------- Run | Yrd Mat Sub Machines Disabled 3 | . 3 . Max in Single Turn 1 | . 1 . Machines Repaired . | . . . Machines Dismantled . | . . . Machines Sabotaged . | . . . Overloaded Fab Kills . | . . . Hacking | -11 -10 -10 --------- Run | Yrd Mat Sub Machines Accessed 2 | . 2 . Terminals 2 | . 2 . Fabricators . | . . . Repair Stations . | . . . Recycling Units . | . . . Scanalyzers . | . . . Garrison Access . | . . . Total Hacks 8 | . 8 . Successful 5 | . 5 . Failed 3 | . 3 . Catastrophic . | . . . Database Lockouts . | . . . Manual 5 | . 5 . Terminals 8 | . 8 . Fabricators . | . . . Repair Stations . | . . . Recycling Units . | . . . Scanalyzers . | . . . Garrison Access . | . . . Terminal Hacks 5 | . 5 . Terminal Index 2 | . 2 . Alert Level 1 | . 1 . Locate Traps 1 | . 1 . Zone Layout 1 | . 1 . Fabricator Hacks . | . . . Repair Station Hacks . | . . . Recycling Unit Hacks . | . . . Scanalyzer . | . . . Garrison Access Hacks . | . . . Unauthorized Hacks . | . . . Terminals . | . . . Fabricators . | . . . Repair Stations . | . . . Recycling Units . | . . . Scanalyzers . | . . . Garrison Access . | . . . Data Cores Recovered . | . . . Used . | . . . Hacking Detections 2 | . 2 . Full Trace Events . | . . . Feedback Events . | . . . Feedback Blocked . | . . . Robot Schematics Acquired . | . . . Robots Built . | . . . Authchips . | . . . Time . | . . . Total Robot Build Rating . | . . . Part Schematics Acquired . | . . . Parts Built . | . . . Authchips . | . . . Time . | . . . Total Part Build Rating . | . . . Parts Repaired . | . . . Time . | . . . Parts Recycled . | . . . Recycled Matter . | . . . Retrieved Matter . | . . . Retrieved Components . | . . . Parts Scanalyzed . | . . . Part Schematics Acquired . | . . . Parts Damaged . | . . . Bothacking | -11 -10 -10 ------------ Run | Yrd Mat Sub Used RIF Installer . | . . . Robots Hacked . | . . . Non-combat . | . . . Combat . | . . . Robot Hacks Applied . | . . . Relay Couplers Released . | . . . Fabnet Peak Effective % . | . . . Robots Rewired . | . . . Allies Hacked . | . . . Hacks Repelled . | . . . Allies | -11 -10 -10 -------- Run | Yrd Mat Sub Total Allies . | . . . Largest Group . | . . . Highest-Rated Group . | . . . Highest-Rated Ally . | . . . Total Orders . | . . . Ally Attacks . | . . . Total Damage . | . . . Kills . | . . . Allies Corrupted . | . . . Allies Melted . | . . . Intel | -11 -10 -10 ------- Run | Yrd Mat Sub Robot Analysis Total . | . . . Derelict Logs Recovered 1 | . . 1 Drone Launches . | . . . Drone Recoveries . | . . . Exploration | -11 -10 -10 ------------- Run | Yrd Mat Sub Turns Passed 1856 | 48 1537 271 Spaces Moved 767 | 35 605 127 Core 6 | 6 . . Treads . | . . . Legs 761 | 29 605 127 Wheels . | . . . Hover . | . . . Flight . | . . . Fastest Speed 50 | 50 120 190 Average Speed 170 | 108 169 190 Slowest Speed 190 | 120 190 190 Overloaded Moves . | . . . Propulsion Burnouts . | . . . Robots Hopped . | . . . Cave-ins Triggered . | . . . Exploration Rate (%) 30 | 3 75 12 Regions Visited 2 Branch Regions 1 Pre-discovered Areas . | . . . Known Exits Taken . | . . . Unknown Exits Taken 2 | 1 1 . Scrap Searched 1 | . . 1 Spaces Dug 5 | . 5 . Terrain Destroyed 45 | . 45 . Melee . | . . . Projectile . | . . . AOE 45 | . 45 . Terrain Rammed . | . . . Walls Destroyed . | . . . Machines Disabled . | . . . Actions | -11 -10 -10 --------- Run | Yrd Mat Sub Total 1217 | 42 1031 144 Wait 350 | . 350 . Move 765 | 34 604 127 Hop . | . . . Pick Up 15 | 2 12 1 Fast Attach 7 | 6 1 . Attach 4 | . 2 2 Detach . | . . . Swap 8 | . 6 2 Drop 2 | . 2 . Fire 66 | . 54 12 Melee . | . . . Ram . | . . . Kick . | . . . Crush . | . . . Escape Stasis . | . . . Rewire . | . . . Trap . | . . . Miscellaneous . | . . . Route ------- -11/Scrapyard -10/Materials (discovered 4 exits: [*Mat x2] / [*Min] / [*Sub]) -10/Subcaves History --------- Turn | Location | Event 7 | -11/Scrapyard | Discovered new exit (range 15) 49 | -11/Scrapyard | Entered Materials 350 | -10/Materials | Build established: Mutant 354 | -10/Materials | Discovered new exit (range 6) 446 | -10/Materials | Core integrity fell below 50% 1044 | -10/Materials | Discovered new exit (range 16) 1343 | -10/Materials | Discovered new exit (range 18) 1574 | -10/Materials | Discovered new exit (range 7) 1586 | -10/Materials | Entered Subcaves 1796 | -10/Subcaves | Learned Materials interactive machine intel 1810 | -10/Subcaves | Ambushed by Subdwellers from Twisted Machinery 1848 | -10/Subcaves | Core integrity fell below 20% 1857 | -10/Subcaves | Destroyed by 7J-1AU(R) with Subdweller Machine Gun Last Messages --------------- Acquired 7 matter. LD-BJM(u) builds Twisted Machinery. B2-J5L(z): "She is not going to be happy we haven't found any suitable candidates yet." LD-BJM(u) builds Twisted Machinery. Searching scrap... Found Battle Rifle. Found 18 Matter. Acquired 18 matter. Acquired Battle Rifle. Acquired derelict log, extracted data. Data stored: Materials interactive machine intel. 7J-1AU(R) emerges from concealment. Assault Rifle destroyed. Aluminum Leg destroyed. KQ-XLD(R) emerges from concealment. Aluminum Leg destroyed. 7J-1AU(R) suffers critical hit (Destroy). EM Pulse Gun destroyed. Map ----- +----------------------------------------------------+ | ?????????????????????????????????????????????????? | | ?????????????????????????????????????????????????? | | ?????????????????????????????????????????????????? | | ?????????????????????????????????????????????????? | | ?????????????????????????????????????????????????? | | ?????????????????????????????????????????????????? | | ?????????????????????????????????????????????????? | | ???????????????????????##????????????????????????? | | ??????????????????????##"" ??##??????????????????? | | ??????????????????????# ""## ??????????????????? | | ??????????????# ?????# """ ??????????????????? | | ?????????????? #?#### "" ??????????????????? | | ??????????????? ## ""??????????????????? | | ???????????????? "??????????????????? | | ????????????????? ???????????????????? | | ?????????????????? R???????????????????? | | ??????????????????## #???????????????????? | | ??????????????????# R ##??????????????????? | | ???????????????????# #??????????????????? | | ????????????????????# #??????????????????? | | ?????????????????????# #??????????????????? | | ???????????????????????# #???????????????????? | | ???????????????????????# #????????????????????? | | ???????????????????###### #????????????????????? | | ??????????????????## ## #????????????????????? | | ??????????????????# @ #????????????????????? | | ?????????????????## ##????????????????????? | | ?????????????????# ## ##????????????????????? | | ?????????????????## ### #????????????????????? | | ?????????????????# ## #????????????????????? | | ????????# #### ##????????????????????? | | ????????# #????????????????????? | | ???????? ## # ## ##????????????????????? | | ???????????????## ?## ## #????????????????????? | | ????????????????? ??## ####????????????????????? | | ????????????????# ????# #???????????????????????? | | ?????????????########## #???????????????????????? | | ?????????????# #???????????????????????? | | ???????????# ##### #???????????????????????? | | ????????????????????## #???????????????????????? | | ?????????????????????# #???????????????????????? | | ?????????????????????# # ##??????????????????????? | | ?????????????? ??????# # ##?????????????????????? | | ????????# #### ##????????????????????? | | ????????????????# #????????????????????? | | ???????????????## ### ##???????????????????? | | ??????????????## #???????????????????? | | ??????????????# ##???????????????????? | | ??????????????## # ##???????????????????? | | ???????####????# ##### ####????????????????? | +----------------------------------------------------+ Best States ------------- Heat Dissipation 25 Energy Generation 10 Energy Capacity 125 Matter Stores 300 Matter Capacity 300 Sight Range 18 Terrain Scan Density 10 Evasion (%) 55 Item Schematics ----------------- None Robot Schematics ------------------ None Fabricated ------------ Nothing Alien Tech Used ----------------- None Achievements -------------- None Challenges ------------ None Game ------ Seed MediumLinkedKatana Manual? 0 Play Time 00:17:56 Cumulative 24.9 hours Start 2024.04.07 @ 21:11:36 End 2024.04.07 @ 21:29:04 Sessions 1 Manual Loads 0 Difficulty Rogue Special Mode None Game No. 33 Rogue 33 Adventurer 0 Explorer 0 Win Type - Total 0 Types 0/0/0/0/0/0/0/0/0 Lore% 17 Gallery% 22 Achievement% 17 Wizard Run 0 Options --------- Layout 1 ASCII 0 Keyboard 1 Movement Numpad Keybinds 0 Fullscreen 1 Font 48/Terminus Map View 50x35 Zoom Use 0% Tactical HUD 0 Map Filters NONE Filters NONE Steam 1 RUN: efb96268-dbfd-4623-924f-0a81ef76abbf